bitfinex/quotes_BTCUSD_20251113
["timestamp","ask_amount","ask_price","bid_price","bid_amount"]
[1763046879619,0.05765135,102880.0,102870.0,0.51942014]
[1763046879826,0.05765135,102880.0,102870.0,1.30011515]
[1763046880026,0.05765135,102880.0,102870.0,0.68216183]
[1763046880233,0.05765135,102880.0,102870.0,1.30011515]
[1763046880644,0.05765135,102880.0,102870.0,1.29638346]
[1763046880848,0.05765135,102880.0,102870.0,0.67843014]
[1763046881274,0.05765135,102880.0,102870.0,1.29638346]
[1763046881474,0.25205259,102880.0,102870.0,0.67843014]
[1763046881678,0.01477135,102880.0,102870.0,0.16474169]
[1763046881829,0.01477135,102880.0,102870.0,1.30011515]
[1763046882275,0.01477135,102880.0,102870.0,1.33428695]
[1763046883339,0.00171448,102880.0,102870.0,1.35221785]
[1763046884310,0.00171448,102880.0,102870.0,1.39563659]
[1763046884499,0.00171448,102880.0,102870.0,1.42302067]
[1763046885518,0.00171448,102880.0,102870.0,1.41302067]
[1763046885825,0.65652082,102900.0,102890.0,0.31559278]
[1763046886021,0.65652082,102900.0,102890.0,0.9681049]
[1763046886230,0.65652082,102900.0,102890.0,1.0660849]
[1763046886618,0.6570104,102900.0,102890.0,1.0660849]
[1763046887052,0.6570104,102900.0,102890.0,0.40471284]
[1763046887269,0.6570104,102900.0,102890.0,0.37015404]
[1763046887480,0.67516273,102900.0,102890.0,0.37015404]
[1763046887722,0.86952618,102900.0,102890.0,0.69415404]
[1763046887944,0.86952618,102900.0,102890.0,0.37115404]
[1763046888171,0.67516273,102900.0,102890.0,0.37115404]
[1763046888405,0.86952618,102900.0,102890.0,0.69515404]
[1763046888645,0.86952618,102900.0,102890.0,0.37155]
[1763046888889,0.93139275,102900.0,102890.0,0.002]
[1763046889123,0.95139593,102900.0,102890.0,0.001]
[1763046889556,0.95139593,102900.0,102890.0,0.002]
[1763046889801,0.95139593,102900.0,102890.0,0.001]
[1763046889802,0.75703248,102900.0,102890.0,0.001]
[1763046890045,0.87860593,102900.0,102890.0,0.00473169]
[1763046890295,0.88160593,102900.0,102890.0,0.00373169]
[1763046890525,0.88360593,102900.0,102890.0,0.00373169]
[1763046890763,0.88412593,102900.0,102890.0,0.00373169]
[1763046890979,0.95588593,102900.0,102890.0,0.00373169]
[1763046891226,0.68924248,102900.0,102890.0,0.19811404]
[1763046891449,0.73212248,102900.0,102890.0,0.19811404]
[1763046891664,0.68924248,102900.0,102890.0,0.25914404]
[1763046891954,0.73012248,102900.0,102890.0,0.97507736]
[1763046892180,0.68824248,102900.0,102890.0,0.97507736]
[1763046892374,0.67616591,102900.0,102890.0,1.29807736]
[1763046893276,0.6600104,102900.0,102890.0,1.29807736]
[1763046893546,0.6580104,102900.0,102890.0,1.29807736]
[1763046893789,0.6580104,102900.0,102890.0,1.29907736]
[1763046894012,0.6570104,102900.0,102890.0,1.29807736]
[1763046894232,0.6570104,102900.0,102890.0,1.29907736]
[1763046894681,0.6570104,102900.0,102890.0,1.29434567]
[1763046894900,0.6570104,102900.0,102890.0,1.29807736]
[1763046895831,0.6570104,102900.0,102890.0,1.33263616]
[1763046897025,0.6570104,102900.0,102890.0,1.33363616]
[1763046897221,0.6570104,102900.0,102890.0,1.4298931]
[1763046897426,0.6570104,102900.0,102890.0,1.3953343]
[1763046897630,0.6570104,102900.0,102890.0,1.3434961]
[1763046898069,0.6570104,102900.0,102890.0,1.41298288]
[1763046899439,0.0002,102910.0,102900.0,0.19809514]
[1763046899612,0.0002,102910.0,102900.0,1.74544215]
[1763046899986,0.0002,102910.0,102900.0,1.12748883]
[1763046900347,1e-08,102920.0,102910.0,0.78003499]
[1763046900566,1e-08,102930.0,102920.0,0.6025061]
[1763046900790,1e-08,102930.0,102920.0,1.46883206]
[1763046901000,1e-08,102930.0,102920.0,1.36066292]
[1763046901212,0.19430682,102930.0,102920.0,0.16462369]
[1763046901426,0.19430682,102930.0,102910.0,0.59840501]
[1763046901629,1e-08,102930.0,102920.0,0.97611069]
[1763046901843,1e-08,102930.0,102920.0,0.78178501]
[1763046902053,1e-08,102930.0,102920.0,0.97611069]
[1763046902432,1e-08,102930.0,102920.0,1.29911069]
[1763046902657,1e-08,102930.0,102920.0,1.34252943]
[1763046902836,1e-08,102930.0,102920.0,1.37706143]
[1763046903011,1e-08,102930.0,102920.0,1.329911]
[1763046903251,1e-08,102930.0,102920.0,1.295379]
[1763046903456,1e-08,102930.0,102920.0,1.29911069]
[1763046903825,1e-08,102930.0,102920.0,1.37706143]
[1763046904269,1e-08,102930.0,102920.0,1.37806143]
[1763046904672,1e-08,102930.0,102920.0,1.38806143]
[1763046904885,1e-08,102930.0,102920.0,1.40540292]
[1763046905093,1e-08,102930.0,102920.0,1.39540292]
[1763046905279,1e-08,102930.0,102920.0,1.37426439]
[1763046905523,0.00073411,102930.0,102920.0,1.33084565]
[1763046906043,0.00073411,102930.0,102920.0,1.37799608]
[1763046906253,0.81225685,102990.0,102920.0,1.37799608]
[1763046906466,3.6012454,103000.0,102990.0,0.28019529]
[1763046906683,2.75967472,103000.0,102990.0,1.39122321]
[1763046906899,2.6656953,103000.0,102990.0,1.43309671]
[1763046907112,2.29557966,103000.0,102990.0,1.37838532]
[1763046907336,2.02989546,103000.0,102990.0,1.37494153]
[1763046907514,1.85618772,103000.0,102990.0,2.01662653]
[1763046907769,1.7978583,103000.0,102990.0,2.18851331]
[1763046908117,1.24274132,103000.0,102990.0,2.18851331]
[1763046908332,0.69614528,103000.0,102990.0,2.11902653]
[1763046908542,0.08527965,103000.0,102990.0,2.18851331]
[1763046908749,0.01154529,103000.0,102990.0,2.17851332]
[1763046908958,0.0002,103010.0,103000.0,0.69672516]
[1763046909176,0.01,103050.0,103040.0,0.54083105]
[1763046909348,0.01,103050.0,103040.0,1.20182437]
[1763046909507,0.01,103050.0,103040.0,1.23301963]
[1763046909710,0.01,103050.0,103040.0,1.20729904]
[1763046909916,0.01,103050.0,103040.0,0.94468501]
[1763046910120,0.01,103050.0,103040.0,1.13878438]
[1763046910325,0.01,103050.0,103040.0,1.18220312]
[1763046910888,0.01,103050.0,103040.0,1.13978339]
[1763046911459,0.05304,103050.0,103040.0,1.13978339]
[1763046911872,0.05304,103050.0,103040.0,0.3277307]
[1763046912091,0.24712054,103050.0,103040.0,0.001]
[1763046912298,0.40279054,103050.0,103040.0,0.001]
[1763046912576,0.40572308,103050.0,103040.0,0.001]
[1763046913148,1.0236764,103050.0,103040.0,0.001]
[1763046913394,1.0236764,103050.0,103040.0,0.00473169]
[1763046913803,0.40572308,103050.0,103040.0,0.00473169]
[1763046914015,0.52232308,103050.0,103040.0,0.001]
[1763046914487,0.51715557,103020.0,102990.0,0.21320784]
[1763046914687,0.043,103010.0,102990.0,0.22291752]
[1763046914822,0.043,103010.0,103000.0,0.19417475]
[1763046915163,0.043,103010.0,103000.0,0.19790644]
[1763046915709,0.043,103010.0,103000.0,0.19417475]
[1763046915915,0.09816915,103030.0,103010.0,0.19415324]
[1763046916298,0.23714489,103020.0,102990.0,0.22291752]
[1763046916500,0.09816915,103000.0,102990.0,0.55091752]
[1763046916675,0.14116915,103000.0,102990.0,0.55091752]
[1763046916816,0.14116915,103000.0,102990.0,1.16760253]
[1763046917014,0.14116915,103000.0,102990.0,1.16387084]
[1763046917646,0.14116915,103000.0,102990.0,0.20390329]
[1763046917857,0.14116915,103000.0,102990.0,0.1979253]
[1763046918052,0.3353439,103000.0,102990.0,0.007]
[1763046918320,0.14116915,103000.0,102990.0,0.007]
[1763046918527,0.09816915,103000.0,102990.0,0.2049253]
[1763046918721,0.14116915,103000.0,102990.0,0.2049253]
[1763046918922,0.3353439,103000.0,102990.0,0.00773169]
[1763046919181,0.3353439,103000.0,102980.0,0.01781]
[1763046919386,0.19419361,102990.0,102960.0,0.8218658]
[1763046919566,0.09816915,102970.0,102960.0,0.19425019]
[1763046919921,0.09816915,102970.0,102960.0,1.13520351]
[1763046920118,0.09816915,102970.0,102950.0,0.8298993]
[1763046920325,0.04296,102960.0,102950.0,0.21567767]
[1763046920520,0.04296,102960.0,102950.0,0.00373169]
[1763046920932,0.04296,102960.0,102930.0,0.23811948]
[1763046920933,0.23721328,102960.0,102930.0,0.20396727]
[1763046921139,0.15567,102960.0,102940.0,0.1942879]
[1763046921346,0.04296,102950.0,102940.0,0.19801959]
[1763046921543,0.21476915,102970.0,102960.0,0.00373169]
[1763046921769,0.60767157,102970.0,102940.0,0.20400229]
[1763046921968,0.19425086,102960.0,102950.0,0.005]
[1763046922231,0.09816915,102950.0,102940.0,0.20400229]
[1763046922451,0.38291098,102950.0,102930.0,0.20396727]
[1763046922653,0.47364098,102950.0,102930.0,0.19425193]
[1763046922832,0.47363867,102950.0,102930.0,0.19430537]
[1763046922981,0.47363867,102950.0,102920.0,0.69501205]
[1763046923182,0.47363867,102950.0,102910.0,0.69507649]
[1763046923183,0.09816915,102930.0,102910.0,0.69507649]
[1763046923408,0.04296,102920.0,102910.0,0.69513649]
[1763046923673,0.04296,102920.0,102910.0,0.69507649]
[1763046924006,0.04296,102920.0,102910.0,0.19434457]
[1763046924216,0.00999999,102990.0,102960.0,0.19425019]
[1763046924411,0.04747,103000.0,102970.0,0.69503295]
[1763046924614,0.043,102990.0,102970.0,0.20394288]
[1763046925148,0.09073,102990.0,102980.0,0.19421246]
[1763046925309,0.23189915,102990.0,102980.0,0.19421246]
[1763046925514,0.29983915,102990.0,102970.0,0.20394288]
[1763046925712,0.49250107,102990.0,102960.0,0.69505276]
[1763046925941,0.09816915,102970.0,102960.0,0.20396269]
[1763046926140,0.14116915,102970.0,102960.0,0.20396269]
[1763046926344,0.14116915,102970.0,102950.0,1.0180405]
[1763046926757,0.09816915,102970.0,102960.0,0.19425019]
[1763046926958,0.14116915,102970.0,102960.0,0.19425019]
[1763046927197,0.33540172,102970.0,102940.0,0.23652384]
[1763046927395,0.42613172,102970.0,102950.0,0.19426488]
[1763046927809,0.09816915,102970.0,102960.0,0.19425019]
[1763046927958,0.14116915,102970.0,102950.0,0.19626488]
[1763046928166,0.42613326,102970.0,102940.0,0.69509239]
[1763046928377,0.42613326,102970.0,102940.0,0.20400232]
[1763046928579,0.19425142,102960.0,102940.0,0.69509239]
[1763046928785,0.043,102950.0,102940.0,0.69509239]
[1763046929074,0.043,102950.0,102940.0,0.20400232]
[1763046929273,0.09047,102950.0,102930.0,0.69504185]
[1763046929501,0.24614,102950.0,102940.0,0.19428793]
[1763046929729,0.34430915,102950.0,102940.0,0.19428793]
[1763046929944,0.34430915,102950.0,102940.0,0.19828793]
[1763046930160,0.34430915,102950.0,102940.0,0.004]
[1763046930488,0.14563915,102950.0,102940.0,0.685378]
[1763046930698,0.18863915,102950.0,102940.0,0.685378]
[1763046931315,0.14112915,102950.0,102940.0,0.685378]
[1763046931535,0.09865838,102950.0,102940.0,0.685378]
[1763046931738,0.14161838,102950.0,102940.0,0.685378]
[1763046932146,0.14140938,102950.0,102940.0,0.19428793]
[1763046932571,0.09844938,102950.0,102940.0,0.685378]
[1763046932775,0.14140938,102950.0,102940.0,0.685378]
[1763046933207,0.09844938,102950.0,102940.0,0.685378]
[1763046933607,0.14140938,102950.0,102940.0,1.03490186]
[1763046933864,0.00048923,102950.0,102940.0,1.0783206]
[1763046934046,0.04344923,102950.0,102940.0,1.11335242]
[1763046934243,0.00048923,102950.0,102940.0,1.08782856]
[1763046934445,0.00048923,102950.0,102940.0,0.68603201]
[1763046934749,0.00048923,102950.0,102940.0,1.06393497]
[1763046934955,0.00048923,102950.0,102940.0,1.61525216]
[1763046935314,0.00048923,102950.0,102940.0,1.12416209]
[1763046935835,0.00048923,102950.0,102940.0,1.07311436]
[1763046936519,0.00048923,102950.0,102940.0,1.12446014]
[1763046936755,0.00048923,102950.0,102940.0,1.12446077]
[1763046937266,0.00048923,102950.0,102940.0,1.07311436]
[1763046937892,0.00048923,102950.0,102940.0,1.12447458]
[1763046938278,0.00048923,102950.0,102940.0,0.7923254]
[1763046938482,0.09865838,102950.0,102940.0,1.07035308]
[1763046938696,0.14161838,102950.0,102940.0,0.55306515]
[1763046938898,0.53735744,102950.0,102940.0,0.02770552]
[1763046939097,0.34308838,102950.0,102940.0,0.002]
[1763046939318,0.19061838,102950.0,102940.0,0.49309007]
[1763046939675,0.19061838,102950.0,102940.0,0.49209007]
[1763046939885,0.19061838,102950.0,102940.0,0.49109007]
[1763046940253,0.38488744,102950.0,102930.0,0.74536805]
[1763046940452,0.19012915,102950.0,102930.0,0.74536805]
[1763046940663,0.33299999,102990.0,102960.0,0.19425019]
[1763046940878,0.09816915,103020.0,102990.0,0.19417656]
[1763046941129,0.14120915,103020.0,103000.0,0.49109007]
[1763046941345,0.049,103010.0,102990.0,0.21992426]
[1763046941562,0.049,103010.0,103000.0,0.19417475]
[1763046941849,0.18294,103010.0,103000.0,0.19417475]
[1763046942021,0.09208,103010.0,103000.0,0.19417475]
[1763046942416,0.37709639,103010.0,102990.0,0.25423424]
[1763046942620,0.09816915,103000.0,102990.0,0.74532431]
[1763046942831,0.14124915,103000.0,102990.0,0.25423424]
[1763046943031,0.14124915,103000.0,102990.0,0.74532614]
[1763046943624,0.14124915,103000.0,102990.0,0.71959366]
[1763046943841,0.14124915,103000.0,102990.0,0.06008795]
[1763046944325,0.29371915,103000.0,102990.0,0.02577797]
[1763046944542,0.29371915,103000.0,102990.0,0.21997158]
[1763046945026,0.4878939,103000.0,102990.0,0.02577797]
[1763046945500,0.19419361,102990.0,102980.0,0.00161112]
[1763046945717,0.34666361,102990.0,102980.0,0.00161112]
[1763046945926,1.16075368,102990.0,102980.0,0.00161112]
[1763046946135,0.19421246,102980.0,102960.0,0.08577495]
[1763046946342,0.24389915,102970.0,102960.0,0.08577495]
[1763046946551,0.18228915,102970.0,102960.0,0.77111521]
[1763046946759,0.19425466,102960.0,102950.0,0.05163858]
[1763046946965,0.19425466,102960.0,102920.0,0.38637571]
[1763046946966,0.19427078,102950.0,102920.0,0.38637571]
[1763046947201,0.19427078,102950.0,102910.0,0.29073809]
[1763046947202,0.2373281,102940.0,102910.0,0.29073809]
[1763046947427,0.2373281,102940.0,102910.0,0.69506191]
[1763046947667,0.32818935,102940.0,102920.0,0.19432396]
[1763046947879,0.09816915,102930.0,102920.0,0.19431739]
[1763046948098,0.14120915,102930.0,102920.0,0.68540746]
[1763046948308,0.14120915,102930.0,102920.0,0.19731739]
[1763046948516,0.14120915,102930.0,102920.0,0.68840746]
[1763046949360,0.14120915,102930.0,102920.0,0.19432568]
[1763046949568,0.29247604,102930.0,102910.0,0.69506191]
[1763046949775,0.001,102940.0,102930.0,0.19430681]
[1763046949984,0.04404,102940.0,102930.0,0.68539688]
[1763046950277,0.04304,102940.0,102930.0,0.68539688]
[1763046950855,0.09816915,102950.0,102940.0,0.19428793]
[1763046950986,0.14120915,102950.0,102930.0,0.68539688]
[1763046951186,0.14120915,102950.0,102940.0,0.19428793]
[1763046951406,0.14120915,102950.0,102940.0,0.685378]
[1763046951681,0.14120915,102950.0,102930.0,0.19430681]
[1763046951885,0.04304,102950.0,102940.0,0.685378]
[1763046952085,0.14120915,102950.0,102940.0,0.685378]
[1763046952407,0.09816915,102950.0,102940.0,0.685378]
[1763046952635,0.14169838,102950.0,102940.0,0.685378]
[1763046953636,0.14169838,102950.0,102940.0,1.008378]
[1763046953637,0.09865838,102950.0,102940.0,1.008378]
[1763046953839,0.14169838,102950.0,102940.0,1.008378]
[1763046954134,0.00048923,102950.0,102940.0,1.05179674]
[1763046954767,0.00048923,102950.0,102940.0,1.12128352]
[1763046955473,0.00048923,102950.0,102940.0,1.12528352]
[1763046955694,0.00048923,102950.0,102940.0,1.13528351]
[1763046955851,0.00048923,102950.0,102940.0,1.14128351]
[1763046956047,0.00048923,102950.0,102940.0,1.13128351]
[1763046956295,0.09816915,103000.0,102990.0,0.19419361]
[1763046956462,0.14116915,103000.0,102990.0,0.68528368]
[1763046956670,0.09816915,103000.0,102990.0,0.68528368]
[1763046956895,0.33656627,103000.0,102980.0,0.49109007]
[1763046957095,0.14116915,103000.0,102990.0,0.19419361]
[1763046957299,0.09816915,103000.0,102990.0,0.68528368]
[1763046957721,0.09816915,103000.0,102990.0,0.49109007]
[1763046957923,0.2923439,103000.0,102980.0,0.323]
[1763046958139,0.2923439,103000.0,102970.0,0.20394288]
[1763046958279,0.2933439,103000.0,102980.0,0.68530209]
[1763046958478,0.2933439,103000.0,102990.0,0.49109007]
[1763046958677,0.1942065,102990.0,102960.0,1.08688273]
[1763046958955,0.1942065,102990.0,102960.0,0.59579266]
[1763046958956,0.09816915,102970.0,102960.0,0.59579266]
[1763046959075,0.09816915,102970.0,102960.0,0.52696269]
[1763046959718,0.09816915,102970.0,102960.0,0.323]
[1763046960105,0.29240047,102970.0,102960.0,0.002]
[1763046960307,0.45830047,102970.0,102960.0,0.003]
[1763046960439,0.29240047,102970.0,102960.0,0.003]
[1763046960652,0.45830047,102970.0,102960.0,0.002]
[1763046961051,0.45830047,102970.0,102930.0,0.76394219]
[1763046961052,0.19426665,102960.0,102930.0,0.76394219]
[1763046961252,0.19426665,102960.0,102930.0,0.69511222]
[1763046961253,0.09816915,102940.0,102930.0,0.69511222]
[1763046961457,0.09816915,102940.0,102930.0,0.20402215]
[1763046961829,0.09816915,102940.0,102930.0,1.01811222]
[1763046962043,0.09816915,102940.0,102930.0,0.68539688]
[1763046962252,0.45836181,102940.0,102920.0,0.06882997]
[1763046962458,0.1096,102930.0,102910.0,0.06882997]
[1763046962664,0.09816915,102920.0,102910.0,0.68543406]
[1763046962881,0.09816915,102920.0,102910.0,0.49109007]
[1763046963093,0.33959483,102920.0,102900.0,0.27291109]
[1763046963326,0.43889483,102920.0,102900.0,0.76400116]
[1763046963535,0.04304,102910.0,102890.0,0.92639984]
[1763046963801,0.04304,102910.0,102900.0,0.49109007]
[1763046964088,0.04304,102910.0,102900.0,0.68545352]
[1763046964279,0.19436345,102900.0,102890.0,0.06882997]
[1763046964518,0.3591326,102900.0,102880.0,0.06882997]
[1763046964631,0.04304,102890.0,102870.0,0.91047214]
[1763046964833,0.04304,102890.0,102880.0,0.19440124]
[1763046965035,0.19440124,102880.0,102860.0,0.30630833]
[1763046965241,0.18676,102890.0,102870.0,0.19440309]
[1763046965444,0.09816915,102880.0,102870.0,0.68549316]
[1763046965850,0.09816915,102880.0,102870.0,1.00849316]
[1763046966251,0.04304,102890.0,102880.0,0.19438525]
[1763046966719,0.23742235,102890.0,102870.0,0.68550409]
[1763046966921,0.09816915,102880.0,102860.0,0.73704763]
[1763046967135,0.29257039,102880.0,102870.0,0.003]
[1763046967291,0.43111055,102880.0,102860.0,0.68552624]
[1763046967486,0.43111055,102880.0,102870.0,0.003]
[1763046967861,0.23670915,102880.0,102860.0,0.19443899]
[1763046968063,0.23670915,102880.0,102870.0,0.68551021]
[1763046968064,0.09816915,102880.0,102870.0,0.68551021]
[1763046968262,0.14120915,102880.0,102870.0,0.68651021]
[1763046968870,0.14120915,102880.0,102870.0,0.68551021]
[1763046969079,0.09816915,102880.0,102870.0,0.49109007]
[1763046969282,0.09816915,102880.0,102860.0,0.003]
[1763046969283,0.49450135,102880.0,102860.0,0.003]
[1763046969453,0.45109182,102880.0,102860.0,0.19743904]
[1763046969654,0.15889,102870.0,102860.0,0.19743904]
[1763046969863,0.43115182,102880.0,102860.0,0.49409007]
[1763046970069,0.35331014,102870.0,102860.0,0.003]
[1763046970249,0.35331014,102870.0,102850.0,0.68554752]
[1763046970447,0.18938915,102860.0,102850.0,0.68554752]
[1763046970646,0.18938915,102860.0,102850.0,0.19445745]
[1763046970848,0.25273915,102860.0,102850.0,0.49109007]
[1763046971046,0.18938915,102860.0,102850.0,0.68554801]
[1763046971509,0.14120915,102860.0,102850.0,0.68554801]
[1763046971692,0.09816915,102860.0,102850.0,0.68554801]
[1763046971891,0.09816915,102860.0,102850.0,1.00854801]
[1763046972550,0.09816915,102860.0,102850.0,0.68554801]
[1763046972771,0.09816915,102860.0,102850.0,0.68654801]
[1763046973234,0.29260819,102860.0,102850.0,0.49209007]
[1763046973410,0.09816915,102860.0,102850.0,0.68654801]
[1763046973618,0.33564819,102860.0,102850.0,0.002]
[1763046973823,0.49453819,102860.0,102850.0,0.002]
[1763046974055,0.30009915,102860.0,102850.0,0.002]
[1763046974238,0.14120915,102860.0,102850.0,0.68754801]
[1763046974462,0.09816915,102860.0,102850.0,0.68754801]
[1763046974663,0.14120915,102860.0,102850.0,0.68654801]
[1763046974840,0.14120915,102860.0,102850.0,0.68554801]
[1763046975242,0.09816915,102860.0,102850.0,0.68554801]
[1763046976005,0.09816915,102860.0,102850.0,1.00854801]
[1763046976214,0.09816915,102880.0,102870.0,0.51742014]
[1763046976426,0.09816915,102880.0,102870.0,1.00851021]
[1763046978011,0.09816915,102880.0,102870.0,1.01251021]
[1763046978471,0.09816915,102900.0,102890.0,0.19438235]
[1763046978702,0.14120915,102920.0,102890.0,0.69519153]
[1763046978925,0.09816915,102900.0,102890.0,0.52710146]
[1763046979167,0.09816915,102900.0,102880.0,0.03419765]
[1763046979352,0.09816915,102900.0,102880.0,0.51739642]
[1763046979588,0.09816915,102900.0,102890.0,0.19438235]
[1763046979811,0.2925326,102900.0,102890.0,0.19438235]
[1763046980040,0.09816915,102900.0,102890.0,0.68547242]
[1763046980282,0.29353394,102900.0,102880.0,0.51739642]
[1763046980493,0.09916915,102900.0,102890.0,0.68547242]
[1763046980897,0.09816915,102900.0,102890.0,0.68547242]
[1763046981282,0.09816915,102940.0,102930.0,0.19430681]
[1763046981443,0.14634915,102950.0,102930.0,0.68539688]
[1763046981633,0.09816915,102950.0,102940.0,0.49109007]
[1763046982124,0.35578821,102950.0,102910.0,0.25745678]
[1763046982326,0.09816915,102930.0,102920.0,0.19432381]
[1763046982532,0.09816915,102930.0,102910.0,0.22325913]
[1763046982737,0.29247632,102930.0,102910.0,0.20406179]
[1763046982939,0.39773166,102930.0,102910.0,0.19434089]
[1763046983060,0.19432597,102920.0,102900.0,0.20408053]
[1763046983268,0.39773166,102930.0,102900.0,0.20408053]
[1763046983269,0.09816915,102910.0,102900.0,0.20408053]
[1763046983477,0.09816915,102910.0,102900.0,0.82169575]
[1763046984480,0.09816915,102910.0,102880.0,0.84621367]
[1763046984481,0.19436345,102900.0,102880.0,0.84621367]
[1763046984746,0.38805372,102910.0,102890.0,0.81199624]
[1763046984969,0.38805372,102910.0,102900.0,0.003]
[1763046985402,0.09816915,102910.0,102900.0,0.19736345]
[1763046985623,0.09816915,102910.0,102900.0,0.19836345]
[1763046985841,0.29251372,102910.0,102900.0,0.004]
[1763046986073,0.29251372,102910.0,102900.0,0.19536345]
[1763046986306,0.09816915,102910.0,102900.0,0.81297867]
[1763046987087,0.16628915,102930.0,102900.0,0.61861522]
[1763046987321,0.09816915,102950.0,102940.0,0.19428793]
[1763046987554,0.33552011,102950.0,102930.0,0.81192013]
[1763046987766,0.14124915,102950.0,102930.0,0.19430617]
[1763046988005,0.14124915,102950.0,102940.0,0.19428793]
[1763046988247,0.09816915,102950.0,102940.0,0.81190315]
[1763046989254,0.00024457,102960.0,102950.0,0.19426906]
[1763046989477,0.00024457,102960.0,102950.0,0.81188428]
[1763046989668,0.00024457,102960.0,102950.0,1.13488428]
[1763046989846,0.00024457,102960.0,102950.0,1.22060332]
[1763046990076,0.00024457,102960.0,102950.0,1.26402206]
[1763046990424,0.00024457,102960.0,102950.0,1.28269387]
[1763046990699,0.00024457,102960.0,102950.0,1.24849622]
[1763046990910,0.00024457,102960.0,102950.0,1.81459005]
[1763046991124,0.00024457,102960.0,102950.0,1.92057508]
[1763046991343,1e-08,102960.0,102950.0,1.92860359]
[1763046991564,1e-08,102960.0,102950.0,1.83459003]
[1763046991769,1e-08,102960.0,102950.0,1.99221533]
[1763046991981,1e-08,102960.0,102950.0,1.96160356]
[1763046992197,1e-08,102960.0,102950.0,1.95860356]
[1763046992410,1e-08,102960.0,102950.0,1.9214485]
[1763046992606,1e-08,102960.0,102950.0,1.95360357]
[1763046992820,1e-08,102960.0,102950.0,1.95660357]
[1763046993064,1e-08,102960.0,102950.0,1.94660358]
[1763046993275,1e-08,102960.0,102950.0,2.02598975]
[1763046993473,1e-08,102960.0,102950.0,2.03598974]
[1763046993696,1e-08,102960.0,102950.0,1.97160356]
[1763046993913,1e-08,102960.0,102950.0,0.72637313]
[1763046994122,1e-08,102960.0,102950.0,0.81954228]
[1763046994389,1e-08,102960.0,102950.0,0.82954227]
[1763046994608,1e-08,102960.0,102950.0,0.79938721]
[1763046994820,1e-08,102960.0,102950.0,0.90602722]
[1763046995030,1e-08,102960.0,102950.0,0.81916875]
[1763046995459,0.24229827,103030.0,103010.0,0.19414673]
[1763046995669,0.09816915,103020.0,103010.0,0.19414673]
[1763046996307,0.09816915,103020.0,103010.0,0.81176195]
[1763046996523,0.09816915,103020.0,103010.0,0.81177112]
[1763046997348,0.09816915,103020.0,103010.0,0.1941559]
[1763046997572,0.09816915,103020.0,103010.0,0.81177112]
[1763046998466,0.001,103020.0,103010.0,0.81177112]
[1763046998887,0.002,103020.0,103010.0,0.81177112]
[1763046999096,0.10016915,103020.0,103010.0,0.1941559]
[1763046999304,0.10016915,103020.0,103010.0,0.81177112]
[1763046999542,0.29330621,103020.0,103000.0,0.61761522]
[1763046999753,0.24031848,103010.0,102990.0,0.1941885]
[1763046999964,0.33946621,103020.0,103000.0,0.19417475]
[1763047000179,0.09916915,103020.0,103010.0,0.1941559]
[1763047000390,0.09816915,103020.0,103010.0,0.1941559]
[1763047000596,0.09816915,103020.0,103010.0,1.13477112]
[1763047001214,0.09816915,103020.0,103010.0,0.5171559]
[1763047001215,0.09963563,103020.0,103010.0,0.5171559]
[1763047001431,0.10063563,103020.0,103010.0,0.5171559]
[1763047002276,0.09963563,103020.0,103010.0,0.5171559]
[1763047002490,0.10063563,103020.0,103010.0,0.5171559]
[1763047003109,0.00246648,103020.0,103010.0,0.5171559]
[1763047003251,0.00246648,103020.0,103010.0,1.13477112]
[1763047003460,0.00246648,103020.0,103010.0,0.5171559]
[1763047003674,0.10063563,103020.0,103010.0,0.5171559]
[1763047003878,0.29477269,103020.0,103010.0,0.5171559]
[1763047004074,0.1941559,103010.0,102990.0,0.8215134]
[1763047004283,0.2923439,103000.0,102980.0,0.84060878]
[1763047004520,0.29332174,103000.0,102970.0,0.9186156]
[1763047004677,0.29238196,102980.0,102950.0,0.08508355]
[1763047004897,0.29241934,102960.0,102940.0,0.61761522]
[1763047005114,0.24043042,102950.0,102920.0,0.8370675]
[1763047005359,0.33190042,102950.0,102930.0,0.19430597]
[1763047005562,0.23724879,102940.0,102920.0,0.8216098]
[1763047005774,0.09816915,102930.0,102920.0,0.20399458]
[1763047005994,0.09816915,102930.0,102900.0,0.26357469]
[1763047006204,0.09816915,102930.0,102920.0,0.20132568]
[1763047006421,0.14112915,102930.0,102920.0,0.20132568]
[1763047006627,0.14112915,102930.0,102920.0,0.19432568]
[1763047006836,0.09816915,102930.0,102920.0,0.19432568]
[1763047007054,0.09816915,102940.0,102930.0,0.19430681]
[1763047007256,0.09816915,102940.0,102930.0,1.13492203]
[1763047007461,0.14112915,102960.0,102950.0,0.19426906]
[1763047007670,0.33537934,102960.0,102940.0,0.19427133]
[1763047008091,0.09816915,102950.0,102940.0,0.81190315]
[1763047008323,0.09816915,102950.0,102940.0,0.19428793]
[1763047009612,0.10016915,102950.0,102940.0,0.19428793]
[1763047010018,0.29443934,102950.0,102940.0,0.19428793]
[1763047010224,0.10016915,102950.0,102940.0,0.19428793]
[1763047010436,0.42886904,102950.0,102930.0,0.52702215]
[1763047010640,0.14312915,102950.0,102940.0,0.19428793]
[1763047010844,0.33739821,102950.0,102930.0,0.52702215]
[1763047011040,0.28575793,102940.0,102920.0,0.21988962]
[1763047011290,0.29247596,102930.0,102920.0,0.21988962]
[1763047011491,0.29247596,102930.0,102910.0,0.22961054]
[1763047011884,0.33543596,102930.0,102910.0,0.22961054]
[1763047012437,0.33543596,102930.0,102910.0,0.20405873]
[1763047012642,0.33643596,102930.0,102910.0,0.20405873]
[1763047012847,0.33643596,102930.0,102910.0,0.20405985]
[1763047012848,0.04616,102920.0,102910.0,0.20405985]
[1763047013026,0.24048568,102920.0,102900.0,0.26357469]
[1763047013173,0.09816915,102910.0,102900.0,0.26357469]
[1763047013399,0.09816915,102910.0,102900.0,1.17015649]
[1763047014467,0.29251372,102910.0,102900.0,0.35156394]
[1763047014623,0.42690372,102910.0,102900.0,0.003]
[1763047015026,0.14108915,102910.0,102900.0,0.003]
[1763047015295,0.14108915,102910.0,102900.0,0.006]
[1763047015495,0.33543372,102910.0,102900.0,0.006]
[1763047015824,0.33543372,102910.0,102860.0,0.27105268]
[1763047015825,0.19440124,102880.0,102860.0,0.27105268]
[1763047016091,0.32879124,102880.0,102860.0,0.19443904]
[1763047016295,0.24054321,102890.0,102870.0,0.19442014]
[1763047016455,0.04296,102880.0,102870.0,0.19442014]
[1763047016644,0.23736124,102880.0,102860.0,0.81205426]
[1763047016973,0.23736124,102880.0,102870.0,0.19442014]
[1763047017204,0.04296,102880.0,102860.0,0.81205426]
[1763047017411,0.04296,102880.0,102870.0,0.19442014]
[1763047017586,0.23736124,102880.0,102860.0,0.81205426]
[1763047018014,0.23736124,102880.0,102870.0,0.19442014]
[1763047018176,0.42700039,102880.0,102860.0,0.81405202]
[1763047018386,0.33553039,102880.0,102860.0,0.81404819]